Cogmind - Beta 9.4 @@@ ROGUE MODE // 2020.01.10 @ 13:30:38 // Winter2019/RPGLIKE Player: Terminus Result: Destroyed by 8R-AWN with 8R-AWN's Boregun Performance ------------- Evolutions (1) 500 Regions Visited (5) 1000 Robots Destroyed (107) 535 Value Destroyed (2526) 2526 Prototype IDs (24) 480 Alien Tech Used (0) 0 Bonus (-22) -22 TOTAL SCORE: 5019 Bonus ------- High Alert Combat Kills 337 Follower Combat Kills 101 Aligned with FarCom 300 Friendly Fire -760 Cogmind --------- Core Integrity 0/600 Matter 205/300 Energy 150/150 System Corruption 1% Temperature Cool (0) Movement Flying (31) Location -9/Exiles Parts ------- > --- POWER (1) -------- Light Angular Momentum Engine > --- PROPULSION (4) --- VTOL Module VTOL Module VTOL Module VTOL Module > --- UTILITY (7) ------ Improved Heat Sink Targeting Computer Targeting Computer Hardened Light Armor Plating System Shield System Shield System Shield > --- WEAPON (3) ------- Heavy EM Pulse Gun Arc Projector Makeshift Sword > --- INVENTORY (4) ---- Medium Reactive Plating EM Shotgun Rocket Launcher Plasma Cutter Peak State ------------ > --- POWER ------------ Light Angular Momentum Engine > --- PROPULSION ------- VTOL Module VTOL Module VTOL Module VTOL Module > --- UTILITY ---------- Improved Heat Sink Targeting Computer Targeting Computer Hardened Light Armor Plating System Shield System Shield System Shield > --- WEAPON ----------- Heavy EM Pulse Gun Arc Projector Makeshift Sword > --- INVENTORY -------- Medium Reactive Plating EM Shotgun Rocket Launcher Plasma Cutter [Rating: 40] Favorites ----------- Power Improved Ion Engine Engine Improved Ion Engine Propulsion VTOL Module Leg Aluminum Leg Flight Unit VTOL Module Utility Targeting Computer Device Improved Heat Sink Processor Targeting Computer Hackware System Shield Protection Hardened Light Armor Plating Weapon EM Pulse Gun Energy Gun EM Pulse Gun Launcher Rocket Launcher Special Weapon Plasma Cutter Slashing Weapon Makeshift Sword Build | -11 -10 -10 -9 -9 -9 ------- Run | Scr Mat Min Mat Min Exi Slots Evolved 11 | 4 2 1 4 . . Power . | . . . . . . Propulsion 3 | 1 1 . 1 . . Utility 6 | 2 1 1 2 . . Weapon 2 | 1 . . 1 . . Parts Attached 48 | 5 14 1 21 2 5 Power 4 | 1 1 . 1 1 . Engine 4 | 1 1 . 1 1 . Core . | . . . . . . Reactor . | . . . . . . Propulsion 17 | 2 6 1 8 . . Treads . | . . . . . . Leg 3 | 2 1 . . . . Wheel . | . . . . . . Hover . | . . . . . . Flight 14 | . 5 1 8 . . Utility 10 | . 5 . 5 . . Device 4 | . 3 . 1 . . Storage . | . . . . . . Processor 2 | . 2 . . . . Hackware 3 | . . . 3 . . Protection 1 | . . . 1 . . Artifact . | . . . . . . Weapon 17 | 2 2 . 7 1 5 Energy Gun 12 | 2 2 . 6 1 1 Energy Cannon . | . . . . . . Ballistic Gun . | . . . . . . Ballistic Cannon . | . . . . . . Launcher 2 | . . . 1 . 1 Special Weapon 1 | . . . . . 1 Impact Weapon . | . . . . . . Slashing Weapon 2 | . . . . . 2 Piercing Weapon . | . . . . . . Special Melee Weapon . | . . . . . . Unidentified Prototypes 2 | . . . 2 . . Parts Lost 1 | . . 1 . . . Power . | . . . . . . Propulsion 1 | . . 1 . . . Utility . | . . . . . . Weapon . | . . . . . . Highest Loss Streak 1 | . . 1 . . . Average Slot Usage (%) 90 | . 83 91 87 100 100 Engine 8 | . 11 9 6 6 6 Leg 4 | . 17 . . . . Flight 21 | . 7 24 26 26 26 Device 12 | . 17 19 11 6 6 Processor 12 | . 5 19 13 13 13 Hackware 7 | . . . 5 20 20 Protection 2 | . . . 1 6 6 Energy Gun 20 | . 23 19 19 20 18 Naked Turns . | . . . . . . Heaviest Build 25 | 7 12 11 21 25 25 Greatest Support 25 | 25 25 17 25 25 25 Greatest Overweight (x) 1 | . 1 . 1 . . Average Overweight (x) . | . . . . . . Largest Inventory Capacity 4 | 1 2 2 3 4 4 Average Capacity 2 | 1 1 2 2 3 4 Most Carried 4 | . 1 . 3 4 4 Average Carried 1 | . . . 1 3 3 Final Capacity 4 | 1 2 2 3 4 4 Final Carried 4 | . . . 3 4 4 Class Distribution -------------------- 34% | Hacker-Sprinter 28% | Scavenger-Mutant 18% | Mutant 16% | Scavenger-Gunner Dominant Class ---------------- Mutant | -10/Materials Scavenger-Mutant | -10/Mines Scavenger-Gunner | -9/Materials Hacker-Sprinter | -9/Mines Hacker-Sprinter | -9/Exiles Resources | -11 -10 -10 -9 -9 -9 ----------- Run | Scr Mat Min Mat Min Exi Matter Collected 651 | 204 186 . 231 20 10 Remotely . | . . . . . . Salvage Created 3172 | . 996 199 1607 345 25 Parts 223 | . 65 19 105 21 13 Haulers Intercepted 7 | . 2 . 5 . . Recyclers Shooed 1 | . 1 . . . . Parts Field Recycled . | . . . . . . Retrieved Matter . | . . . . . . Parts Self-Destructed . | . . . . . . Prevented . | . . . . . . Kills | -11 -10 -10 -9 -9 -9 ------- Run | Scr Mat Min Mat Min Exi Combat Hostiles Destroyed 80 | . 20 9 32 12 7 Guns 59 | . 17 8 23 10 1 AOE 18 | . 1 1 8 2 6 Classes Destroyed 10 | . 7 1 2 . . Worker 3 | . 3 . . . . Builder 2 | . . . 2 . . Hauler 7 | . 2 . 5 . . Recycler 5 | . 4 . 1 . . Operator 1 | . 1 . . . . Watcher 6 | . 2 . 4 . . Swarmer 20 | . 6 1 6 7 . Grunt 45 | . 14 8 18 5 . Sentry 8 | . . . 8 . . Assembled 8 | . . 1 . . 7 Thug 1 | . . . . 1 . Best Kill Streak 8 | . 6 3 7 4 8 Combat Bots Only 7 | . 4 3 5 4 7 Max Kills in Single Turn 4 | . 3 1 4 2 3 Gunslinging 1 | . . . . 1 . Exploded 3 | . 1 1 3 2 3 Melee . | . . . . . . Uniques/NPCs Destroyed 1 | . . . . . 1 EX-BIN (-9/Exiles) Combat | -11 -10 -10 -9 -9 -9 -------- Run | Scr Mat Min Mat Min Exi Damage Taken 3150 | . 748 242 1054 268 838 Core 2435 | . 594 200 840 197 604 Absorbed by Shields . | . . . . . . Redirected to Core 1902 | . 491 139 656 118 498 Core Remaining (%) 100 | 100 . 100 . . . Volleys Fired 226 | . 81 23 89 19 14 Largest 3 | . 2 2 3 3 3 Hottest 145 | . 80 80 130 145 145 Shots Fired 507 | . 162 46 223 57 19 Gun 495 | . 162 46 222 57 8 Cannon . | . . . . . . Launcher 6 | . . . 1 . 5 Special 6 | . . . . . 6 Kinetic . | . . . . . . Thermal 6 | . . . . . 6 Explosive 6 | . . . 1 . 5 Electromagnetic 495 | . 162 46 222 57 8 Robot Hit Streak 16 | . 13 9 16 13 13 Robot Miss Streak 4 | . 3 4 4 2 2 Penetration Max . | . . . . . . Secondary Targets 8 | . 3 . 1 4 . Max Gunslinging Chain 1 | . 1 . 1 1 . Shots Hit Robots 352 | . 101 27 146 42 36 Core Hits 185 | . 48 21 74 21 21 Critical Hits 1 | . . . . . 1 Critical Kills . | . . . . . . Critical Parts Destroyed . | . . . . . . Melee Attacks 31 | . . . . . 31 Impact . | . . . . . . Slashing 31 | . . . . . 31 Piercing . | . . . . . . Sneak Attacks 2 | . . . . . 2 Combat Hostiles . | . . . . . . Follow-up Attacks . | . . . . . . Damage Inflicted 6683 | . 1558 516 2568 526 1515 Guns 4125 | . 1276 370 1976 480 23 Cannons . | . . . . . . Explosions 1628 | . 282 146 592 46 562 Melee 927 | . . . . . 927 Ramming . | . . . . . . Kinetic . | . . . . . . Thermal 856 | . 282 146 379 46 3 Explosive 775 | . . . 213 . 562 Electromagnetic 4125 | . 1276 370 1976 480 23 Impact . | . . . . . . Slashing 927 | . . . . . 927 Piercing . | . . . . . . Highest Corruption 1 | . . . 1 1 1 Average Corruption 1 | . . . 1 1 1 Corruption Purged . | . . . . . . Effects 6 | . . . 2 1 3 Message Errors 2 | . . . 1 . 1 Energy Discharges 2 | . . . 1 . 1 Data Loss (minor) 2 | . . . . 1 1 Overload Shots . | . . . . . . Overflow Damage 151 | . 29 13 . . 109 Projectiles . | . . . . . . Explosions 72 | . 29 13 . . 30 Melee 79 | . . . . . 79 Knockbacks . | . . . . . . Impact . | . . . . . . Kinetic . | . . . . . . Secondary . | . . . . . . Self-Inflicted Damage 138 | . 51 50 . 33 4 Shots 6 | . 2 2 . 1 1 Rammed . | . . . . . . Targets Rammed . | . . . . . . Kicked . | . . . . . . Crushed . | . . . . . . Highest Temperature 385 | . 6 . 385 297 141 Average Temperature 86 | . 6 . 71 117 55 Received Heat Transfer 812 | . 300 93 354 45 20 Effects 2 | . . . 2 . . Energy Bleed 2 | . . . 2 . . Siege Activations . | . . . . . . Robots Corrupted 3 | . 2 . 1 . . Combat Hostiles 3 | . 2 . 1 . . Parts Fried 22 | . 4 1 16 1 . Impact Corruptions . | . . . . . . Robots Melted . | . . . . . . Combat Hostiles . | . . . . . . Parts Melted 1 | . . . 1 . . Heat Transferred 1277 | . 450 250 450 100 27 Parts Sabotaged . | . . . . . . Parts Stolen . | . . . . . . Parts Stripped . | . . . . . . Power Chain Reactions 12 | . 4 2 5 1 . Missiles Intercepted . | . . . . . . Alert | -11 -10 -10 -9 -9 -9 ------- Run | Scr Mat Min Mat Min Exi Peak Influence 804 | . 550 416 804 447 . Average Influence 364 | . 196 255 525 369 . Maximum Alert Level 3 | . 2 2 3 2 . Low Security (%) 27 | 100 64 28 5 5 . Level 1 30 | . 15 62 18 70 . Level 2 34 | . 19 9 57 24 . Level 3 7 | . . . 18 . . Level 4 . | . . . . . . Level 5 . | . . . . . . High Security . | . . . . . . Max Security . | . . . . . . Squads Dispatched 9 | . 4 . 5 . . Investigation 6 | . 3 . 3 . . Extermination . | . . . . . . Reinforcement 3 | . 1 . 2 . . Assault . | . . . . . . Garrison . | . . . . . . Intercept . | . . . . . . Construction Impeded . | . . . . . . Haulers Reinforced . | . . . . . . Stealth | -11 -10 -10 -9 -9 -9 --------- Run | Scr Mat Min Mat Min Exi Distress Signals 9 | . 2 3 4 . . Communications Jammed . | . . . . . . Distress Signals . | . . . . . . Times Spotted 115 | . 31 11 52 13 8 Peak Tracking Total 9 | . 7 3 6 4 9 Tactical Retreats 8 | . 4 1 3 . . Traps | -11 -10 -10 -9 -9 -9 ------- Run | Scr Mat Min Mat Min Exi Traps Triggered 4 | . 3 . 1 . . Indirectly . | . . . . . . Trap Hack Attempts . | . . . . . . Triggered . | . . . . . . Disarmed . | . . . . . . Reprogrammed . | . . . . . . Reused . | . . . . . . Traps Extracted . | . . . . . . Installed . | . . . . . . Triggered . | . . . . . . Machines | -11 -10 -10 -9 -9 -9 ---------- Run | Scr Mat Min Mat Min Exi Machines Disabled 20 | . 7 2 7 1 3 Max in Single Turn 2 | . 2 1 1 1 1 Machines Sabotaged . | . . . . . . Garrisons Compromised . | . . . . . . Overloaded Fab Kills . | . . . . . . Fab Network Shutdowns . | . . . . . . Hacking | -11 -10 -10 -9 -9 -9 --------- Run | Scr Mat Min Mat Min Exi Machines Accessed 17 | . 5 . 9 1 2 Terminals 13 | . 4 . 9 . . Fabricators . | . . . . . . Repair Stations . | . . . . . . Recycling Units 1 | . 1 . . . . Scanalyzers . | . . . . . . Garrison Access . | . . . . . . Total Hacks 69 | . 15 . 48 1 5 Successful 43 | . 10 . 27 1 5 Failed 26 | . 5 . 21 . . Catastrophic 2 | . . . 2 . . Database Lockouts . | . . . . . . Manual 61 | . 14 . 46 . 1 Terminals 62 | . 14 . 48 . . Fabricators . | . . . . . . Repair Stations . | . . . . . . Recycling Units 1 | . 1 . . . . Scanalyzers . | . . . . . . Garrison Access . | . . . . . . Terminal Hacks 28 | . 6 . 16 1 5 Record 4 | . . . . . 4 Open Door 1 | . . . . 1 . Branch Access Points 1 | . . . 1 . . Emergency Access Points 1 | . 1 . . . . Terminal Index 1 | . 1 . . . . Alert Level 6 | . 1 . 5 . . Unreport Threat 4 | . . . 4 . . Hauler Manifests 1 | . . . 1 . . Zone Layout 8 | . 3 . 5 . . EX-Prototype ID Bank 1 | . . . . . 1 Fabricator Hacks . | . . . . . . Repair Station Hacks . | . . . . . . Recycling Unit Hacks . | . . . . . . Scanalyzer . | . . . . . . Garrison Access Hacks . | . . . . . . Unauthorized Hacks 36 | . 12 . 24 . . Terminals 14 | . 3 . 11 . . Track 1 | . . . 1 . . Assimilate 2 | . . . 2 . . Botnet 10 | . 3 . 7 . . Operators 1 | . . . 1 . . Fabricators . | . . . . . . Repair Stations . | . . . . . . Recycling Units 1 | . 1 . . . . Tunnel 1 | . 1 . . . . Scanalyzers . | . . . . . . Garrison Access . | . . . . . . Data Cores Recovered . | . . . . . . Used . | . . . . . . Hacking Detections 12 | . 4 . 8 . . Full Trace Events 2 | . . . 2 . . Feedback Events 1 | . . . 1 . . Corruption 1 | . . . 1 . . Feedback Blocked . | . . . . . . Robot Schematics Acquired . | . . . . . . Robots Built . | . . . . . . Matter . | . . . . . . Time . | . . . . . . Total Robot Build Rating . | . . . . . . Part Schematics Acquired . | . . . . . . Parts Built . | . . . . . . Matter . | . . . . . . Time . | . . . . . . Total Part Build Rating . | . . . . . . Parts Repaired . | . . . . . . Time . | . . . . . . Parts Recycled . | . . . . . . Recycled Matter . | . . . . . . Retrieved Matter . | . . . . . . Retrieved Components . | . . . . . . Parts Scanalyzed . | . . . . . . Part Schematics Acquired . | . . . . . . Parts Damaged . | . . . . . . Bothacking | -11 -10 -10 -9 -9 -9 ------------ Run | Scr Mat Min Mat Min Exi Used RIF Installer . | . . . . . . Robots Hacked . | . . . . . . Non-combat . | . . . . . . Combat . | . . . . . . Robot Hacks Applied . | . . . . . . Relay Couplers Released . | . . . . . . Robots Rewired . | . . . . . . Allies Hacked . | . . . . . . Hacks Repelled . | . . . . . . Allies | -11 -10 -10 -9 -9 -9 -------- Run | Scr Mat Min Mat Min Exi Total Allies 8 | . . 5 2 1 . Largest Group 5 | . . 5 4 1 1 Highest-Rated Group 82 | . . 82 66 31 31 Highest-Rated Ally 31 | . . 31 31 31 31 Total Orders . | . . . . . . Ally Attacks 40 | . . 10 30 . . Total Damage 406 | . . 74 332 . . Kills 9 | . . 3 6 . . Allies Corrupted . | . . . . . . Allies Melted . | . . . . . . Intel | -11 -10 -10 -9 -9 -9 ------- Run | Scr Mat Min Mat Min Exi Robot Analysis Total . | . . . . . . Derelict Logs Recovered 3 | . . 1 . 2 . Drone Launches . | . . . . . . Drone Recoveries . | . . . . . . Exploration | -11 -10 -10 -9 -9 -9 ------------- Run | Scr Mat Min Mat Min Exi Turns Passed 3421 | 43 819 442 1240 339 538 Spaces Moved 3972 | 37 537 550 1497 566 785 Core 12 | 12 . . . . . Treads . | . . . . . . Legs 312 | 25 287 . . . . Wheels . | . . . . . . Hover . | . . . . . . Flight 3648 | . 250 550 1497 566 785 Fastest Speed 31 | 50 37 34 31 31 31 Average Speed 40 | 97 81 36 33 31 31 Slowest Speed 130 | 120 130 37 117 31 31 Overloaded Moves . | . . . . . . Propulsion Burnouts . | . . . . . . Robots Hopped 61 | . 5 19 36 1 . Cave-ins Triggered . | . . . . . . Exploration Rate (%) 68 | 3 70 92 97 83 64 Regions Visited 5 Branch Regions 3 Pre-discovered Areas 4 | . 1 . . 2 1 Known Exits Taken 1 | . . . 1 . . Unknown Exits Taken 4 | 1 1 1 . 1 . Scrap Searched 4 | . . 3 . 1 . Spaces Dug 7 | . . . 7 . . Terrain Destroyed 70 | . 17 10 21 6 16 Melee . | . . . . . . Projectile . | . . . . . . AOE 70 | . 17 10 21 6 16 Actions | -11 -10 -10 -9 -9 -9 --------- Run | Scr Mat Min Mat Min Exi Total 5241 | 41 749 724 2016 685 1026 Wait 873 | . 82 155 375 82 179 Move 3858 | 36 526 516 1432 563 785 Hop 48 | . 5 14 28 1 . Pick Up 13 | . 1 . 5 1 6 Fast Attach 28 | 5 8 1 12 2 . Attach 2 | . 1 . 1 . . Detach . | . . . . . . Swap 18 | . 5 . 8 . 5 Drop 30 | . 9 . 13 2 6 Fire 226 | . 81 23 89 19 14 Melee 31 | . . . . . 31 Ram . | . . . . . . Kick . | . . . . . . Crush . | . . . . . . Escape Stasis . | . . . . . . Rewire . | . . . . . . Trap . | . . . . . . Miscellaneous 114 | . 31 15 53 15 . Route ------- -11/Scrapyard -10/Materials (discovered 3 exits: *Mat x2 / [*Min]) -10/Mines -9/Materials (discovered 5 exits: [*Mat x3] / *Min x2) -9/Mines (discovered 2 exits: [*Mat] / *Exi) -9/Exiles History --------- Turn | Location | Event 1 | -11/Scrapyard | Upgraded with Propulsion slot (x1) 1 | -11/Scrapyard | Upgraded with Utility slot (x2) 1 | -11/Scrapyard | Upgraded with Weapon slot (x1) 17 | -11/Scrapyard | Discovered new exit (range 16) 44 | -11/Scrapyard | Entered Materials 273 | -10/Materials | Discovered new exit (range 16) 309 | -10/Materials | Build established: Mutant 514 | -10/Materials | Reached level 2 517 | -10/Materials | Discovered new exit (range 16) 571 | -10/Materials | Upgraded with Utility slot (x1) 777 | -10/Materials | Reached level 3 785 | -10/Materials | Upgraded with Propulsion slot (x1) 804 | -10/Materials | Discovered new exit (range 16) 863 | -10/Materials | Entered Mines 920 | -10/Mines | Build established: Scavenger-Mutant 950 | -10/Mines | Excavation squad dispatched 950 | -10/Mines | A large section of the Mines collapsed 1083 | -10/Mines | Reached level 4 1111 | -10/Mines | Upgraded with Utility slot (x1) 1116 | -10/Mines | Discovered new exit (range 6) 1126 | -10/Mines | Learned location of 1 exit from Materials 1182 | -10/Mines | Assisted by bots powering up and referring to "LRC-V3" 1305 | -10/Mines | Entered Materials 1305 | -9/Materials | Accompanied by 4 allies 1306 | -9/Materials | Identified exit to Mines 1307 | -9/Materials | Reached level 5 1316 | -9/Materials | Led the pair of lost Derelicts to an unsafe place 1320 | -9/Materials | Discovered exit to Mines (range 12) 1340 | -9/Materials | Upgraded with Propulsion slot (x1) 1340 | -9/Materials | Upgraded with Weapon slot (x1) 1399 | -9/Materials | Reached level 6 1401 | -9/Materials | Upgraded with Utility slot (x1) 1455 | -9/Materials | Discovered new exit (range 16) 1621 | -9/Materials | Reached level 7 1732 | -9/Materials | Discovered new exit (range 16) 1894 | -9/Materials | Build established: Scavenger-Gunner 1951 | -9/Materials | Reached level 8 1968 | -9/Materials | Upgraded with Utility slot (x1) 2084 | -9/Materials | Discovered new exit (range 16) 2112 | -9/Materials | Core integrity fell below 50% 2447 | -9/Materials | Reached level 9 2532 | -9/Materials | Build established: Hacker-Sprinter 2545 | -9/Materials | Entered Mines 2694 | -9/Mines | Learned Materials trap positions 2732 | -9/Mines | Learned location of Storage (-8) 2798 | -9/Mines | Discovered new exit (range 11) 2804 | -9/Mines | Escorted by a lone wolf Derelict 2825 | -9/Mines | Met a Derelict who couldn't figure out how to use a Trap Extractor 2862 | -9/Mines | Deemed a non-threat by the Exiles lab entrance 2862 | -9/Mines | Discovered new exit (range 5) 2884 | -9/Mines | Entered Exiles 2884 | -9/Exiles | Accompanied by 1 ally 2892 | -9/Exiles | Met 8R-AWN 2897 | -9/Exiles | Met EX-HEX 2906 | -9/Exiles | Met EX-BIN 2956 | -9/Exiles | Met EX-DEC 2958 | -9/Exiles | Learned location of Zion (-7) 3076 | -9/Exiles | Aligned with FarCom system 3077 | -9/Exiles | Given EX-Vault access code 3084 | -9/Exiles | Opened EX-Vault 3087 | -9/Exiles | Found Superbattery 3219 | -9/Exiles | Warned to stay clear of 0b10 Research branches 3267 | -9/Exiles | Attacked by the Exiles 3268 | -9/Exiles | Destroyed EX-BIN 3311 | -9/Exiles | Destroyed 7 combat bots 3396 | -9/Exiles | Core integrity fell below 20% 3422 | -9/Exiles | Destroyed by 8R-AWN with 8R-AWN's Boregun Last Messages --------------- 03381_ Penetrated by HV Slug. 03381_ HV Slug penetrates Earth. 03385_ System corrupted: Energy discharge (-58). 03385_ Penetrated by HV Slug. 03390_ HV Slug penetrates Wall. 03390_ HV Slug penetrates DEC's Workstation. 03390_ Penetrated by HV Slug. 03390_ HV Slug penetrates Wall. 03395_ Penetrated by HV Slug. 03395_ HV Slug penetrates Wall. 03401_ Penetrated by HV Slug. 03405_ HV Slug penetrates Earth. 03405_ HV Slug penetrates Wall. 03409_ Penetrated by HV Slug. 03419_ HV Slug penetrates Wall. 03419_ Destroyed Prototype Protection. 03422_ Penetrated by HV Slug. 03422_ HV Slug penetrates Wall. 03422_ Penetrated by HV Slug. 03422_ Critical hit. Map ----- +----------------------------------------------------+ | | | | | | | | | | | | | | | | | ????????????????????#########????????????????????? | | ????????????????????# [ #????????????????????? | | ????????????????????# ! #????????????????????? | | ????????????????????# #????????????????????? | | ????????????????????# X#????????????????????? | | ????????????????????## ##????????????????????? | | ????????????????????#X #?????????????????????? | | ????????????????????## #?????????????????????? | | ?????????????????????# #?????????????????????? | | ?????????????????????# #???####??????????????? | | ?????????????????????# #??"""""??????????????? | | ?????????????????????# ## """#?????????????? | | ?????????????????????# X""#?????????????? | | ?????????????????????# ## """#?????????????? | | ?????????????######### #??"""""??????????????? | | ?????????????#" " ## #???####??????????????? | | ????????????##" ## #?????????????????????? | | ???????????##; !!! @ #?????????????????????? | | ???? ; ! g#?????????????????????? | | ??????????# ; ## #?????????????????????? | | ??????????# ## " """## #?#########???????????? | | ?????????????##"###### #?#"""""""#???????????? | | ????????????? "?????# #?#"""""""#???????????? | | ????????????"""??????# #?#"""""""#???????????? | | ???????????#""??????## ###"" """"#???????????? | | ????????????????????#" """"#???????????? | | ????????????????????#" """#???????????? | | ????????????????????#" """#???????????? | | ????????????????????#" """#???????????? | | ???????####?????????#" ! """#???????????? | | ??????? """????????#" !!!!! """##??????????? | | ???????" """#???????## !!%*! """""??????????? | | ???????" #????????# !!! """##??????????? | | ??????"" #???????##" "X" """"???????????? | | ??????"" "#???????# """ #???????????? | | ?????? ""????????## """""""#???????????? | | ???????" "?????????## ########???????????? | | ???????# #????????##" #??????????????????? | | ##???### ###?######"" #??????????????????? | | "#####X# #"###""""""" #??????????????????? | | """""" " "" ##??#########???????? | | "" """ " #####"""""""""##????? | +----------------------------------------------------+ Best States ------------- Heat Dissipation 61 Energy Generation 23 Energy Capacity 265 Matter Stores 300 Matter Capacity 300 Sight Range 16 Terrain Scan Density 10 Armor Coverage 150 Evasion (%) 63 Targeting Accuracy 10 Offensive Hacking 5 Defensive Hacking 30 Item Schematics ----------------- None Robot Schematics ------------------ None Fabricated ------------ Nothing Alien Tech Used ----------------- None Achievements -------------- None Challenges ------------ None RPGLIKE | -11 -10 -10 -9 -9 -9 --------- Run | Scr Mat Min Mat Min Exi Levels Raised 8 | . 2 1 5 . . XP Earned 16180 | 3000 3254 1857 6945 955 169 XP Spent 14420 | 2970 2400 1400 6350 1300 . Upgrades 20 | 9 3 1 5 2 . Propulsion Slot 3 | 1 1 . 1 . . Utility Slot 6 | 2 1 1 2 . . Weapon Slot 2 | 1 . . 1 . . Heat Dissipation 2 | 2 . . . . . Energy Generation 1 | . . . . 1 . Mass Support 1 | 1 . . . . . Inventory Capacity 4 | 1 1 . 1 1 . Hack Attack % 1 | 1 . . . . . Protomatter Created 1208 | . 325 215 526 132 10 Integrity Restored 2280 | . 645 290 1049 296 . Core 1831 | . 560 234 840 197 . Parts 449 | . 85 56 209 99 . Protomatter Decayed 341 | . 101 76 161 3 . Game ------ Seed FluxPotentialManipulator Manual? 0 Play Time 00:40:07 Cumulative 995.9 hours Start 2020.01.10 @ 12:55:17 End 2020.01.10 @ 13:30:38 Sessions 1 Manual Loads 0 Difficulty Rogue Special Mode Winter2019/RPGLIKE Game No. 320 Rogue 320 Adventurer 0 Explorer 0 Win Type - Total 72 Types 14/7/32/4/1/2/12 Lore% 97 Gallery% 95 Achievement% 84 Wizard Run 0 Options --------- ASCII 0 Keyboard 0 Movement Numpad Keybinds 0 Fullscreen 1 Font 18/SmallcapsGlow Map View 76x50 Tactical HUD 1 Map Filters NONE Filters NONE Steam 1 RUN: 21a9ba5f-6e2b-4007-8569-2e1519fa12dd